[Event "Ilmar Raud Memorial 2020"]
[Site "Viljandi"]
[Date "2020.07.09"]
[Round "5.6"]
[White "Olde, Margareth"]
[Black "Sakalauskas, Vaidas"]
[Result "1/2-1/2"]
[ECO "D97"]
[WhiteElo "2201"]
[BlackElo "2335"]
[Annotator "RC"]
[PlyCount "58"]
[EventDate "2020.07.08"]
[EventCountry "EST"]
[SourceTitle "playchess.com"]
[Source "ChessBase"]
[SourceQuality "1"]
[TimeControl "40/5400+30:900+30"]

1. d4 {[%emt 17:33:17]} Nf6 {[%emt 0:02:00]} 2. c4 {[%emt 0:00:14]} g6 {[%emt 0:00:18]} 3. Nc3 {[%emt 0:00:15]} d5 {[%emt 0:02:16]} 4. Nf3 {[%emt 0:00:43]} Bg7 {[%emt 0:00:39]} 5. Qb3 {[%emt 0:00:09]} dxc4 {[%emt 0:00:28]} 6. Qxc4 {[%emt 0:00:08]} O-O {[%emt 0:00:28]} 7. e4 {[%emt 0:00:09]} Be6 {[%emt 0:00:52]} 8. d5 {[%emt 0:02:42]} Bc8 {[%emt 0:04:15]} 9. Be2 {[%emt 0:03:46]} c6 {[%emt 0:00:31]} 10. O-O {[%emt 0:02:36]} cxd5 {[%emt 0:00:17]} 11. exd5 {[%emt 0:00:37]} Nbd7 {[%emt 0:00:27]} 12. Rd1 {[%emt 0:04:48]} Nb6 {[%emt 0:00:47]} 13. Qh4 {[%emt 0:09:43]} Nbxd5 {[%emt 0:01:15]} 14. Bc4 {[%emt 0:26:53]} e6 {[%emt 0:04:16]} 15. Bg5 {[%emt 0:09:55]} Qa5 {[%emt 0:07:00]} 16. Rd3 {[%emt 0:03:33]} Bd7 {[%emt 0:27:05]} 17. Ne5 {[%emt 0:07:04]} Bc6 {[%emt 0:02:00]} 18. Bxd5 {[%emt 0:05:13]} Nxd5 {[%emt 0:00:35]} 19. Nxd5 {[%emt 0:00:25]} exd5 {[%emt 0:10:45]} 20. Rh3 {[%emt 0:00:18]} h5 {[%emt 0:00:51]} 21. Bf6 {[%emt 0:03:26]} Rae8 {[%emt 0:08:06]} 22. Qg5 {[%emt 0:06:53]} Bxf6 {[%emt 0:03:48]} 23. Qxf6 {[%emt 0:00:05]} Qd8 {[%emt 0:08:04]} 24. Qf4 {[%emt 0:01:46]} Qd6 {[%emt 0:01:18]} 25. Rxh5 {[%emt 0:10:46]} gxh5 {[%emt 0:01:09]} 26. Qg5+ {[%emt 0:00:03]} Kh7 {[%emt 0:02:12]} 27. Qf5+ {[%emt 0:00:04]} Kg7 {[%emt 0:07:48]} 28. Qg5+ {[%emt 0:00:05]} Kh7 {[%emt 0:00:06]} 29. Qf5+ {[%emt 0:00:03]} Kg8 {[%emt 0:00:11]} 1/2-1/2